fUST/lending_fUST_20250801
["ID","MTS","AMOUNT","RATE_DAILY","PERIOD"]
[376619908,1754053843542,-460.0,0.00024657,10]
[376619909,1754053843551,-151.0,0.00024657,7]
[376619910,1754053843560,-460.0,0.00024657,10]
[376619911,1754053843569,-151.0,0.00024657,7]
[376619912,1754053843578,-460.0,0.00024657,10]
[376619913,1754053843587,-460.0,0.00024657,10]
[376619914,1754053843596,-153.93606,0.00024657,7]
[376619915,1754053843606,-460.0,0.00024657,10]
[376619916,1754053843616,-460.0,0.00024657,10]
[376619917,1754053843625,-460.0,0.00024657,10]
[376619918,1754053843634,-460.0,0.00024657,10]
[376619919,1754053843644,-460.0,0.00024657,10]
[376619920,1754053843653,-460.0,0.00024657,10]
[376619921,1754053843662,-398.377526,0.00024657,7]
[376619922,1754053843672,-460.0,0.00024657,10]
[376619923,1754053843682,-398.377526,0.00024657,7]
[376619924,1754053843690,-460.0,0.00024657,10]
[376619925,1754053843700,-398.377526,0.00024657,7]
[376619926,1754053843709,-460.0,0.00024657,10]
[376619927,1754053843718,-460.0,0.00024657,10]
[376619928,1754053843727,-398.377526,0.00024657,7]
[376619929,1754053843736,-460.0,0.00024657,10]
[376619930,1754053843747,-460.0,0.00024657,10]
[376619931,1754053843757,-398.377526,0.00024657,7]
[376619932,1754053843766,-460.0,0.00024657,10]
[376619933,1754053843775,-398.377526,0.00024657,7]
[376619934,1754053843784,-460.0,0.00024657,10]
[376619935,1754053843794,-460.0,0.00024657,10]
[376619936,1754053843803,-398.377526,0.00024657,7]
[376619937,1754053843813,-460.0,0.00024657,10]
[376619938,1754053843822,-398.377526,0.00024657,7]
[376619939,1754053843831,-486.95923704,0.00024657,10]
[376619940,1754053843840,-398.377526,0.00024657,7]
[376619941,1754053843850,-398.377526,0.00024657,7]
[376619942,1754053843859,-398.377526,0.00024657,7]
[376619943,1754053843868,-398.377526,0.00024657,7]
[376619944,1754053843877,-460.0,0.00024657,10]
[376619945,1754053843887,-398.377526,0.00024657,7]
[376619946,1754053843896,-398.377526,0.00024657,7]
[376619947,1754053843906,-398.377526,0.00024657,7]
[376619948,1754053843915,-398.377526,0.00024657,7]
[376619949,1754053843924,-398.377534,0.00024657,7]
[376619950,1754053843933,-460.0,0.00024657,10]
[376619951,1754053843944,-460.0,0.00024657,10]
[376619952,1754053843954,-180.62085682,0.00024657,10]
[376619953,1754053843963,-460.0,0.00024657,10]
[376619954,1754053843972,-460.0,0.00024657,10]
[376619955,1754053843982,-460.0,0.00024657,10]
[376619956,1754053843992,-460.0,0.00024657,10]
[376619957,1754053844002,-460.0,0.00024657,10]
[376619958,1754053844011,-460.0,0.00024657,10]
[376619959,1754053844021,-460.0,0.00024657,10]
[376619960,1754053844030,-465.26061531,0.00024657,10]
[376619961,1754053844040,-460.0,0.00024657,10]
[376619962,1754053844049,-460.0,0.00024657,10]
[376619963,1754053844059,-460.0,0.00024657,10]
[376619964,1754053844068,-460.0,0.00024657,10]
[376619965,1754053844081,-460.0,0.00024657,10]
[376619966,1754053844090,-560.0045314,0.00024657,10]
[376619967,1754053844100,-460.0,0.00024657,10]
[376619968,1754053844109,-460.0,0.00024657,10]
[376619969,1754053844120,-460.0,0.00024657,10]
[376619970,1754053844129,-460.0,0.00024657,10]
[376619971,1754053844139,-460.0,0.00024657,10]
[376619972,1754053844148,-460.0,0.00024657,10]
[376619973,1754053844158,-460.0,0.00024657,10]
[376619974,1754053844168,-460.0,0.00024657,10]
[376619975,1754053844178,-460.0,0.00024657,10]
[376619976,1754053844188,-460.0,0.00024657,10]
[376619977,1754053844197,-460.90402685,0.00024657,10]
[376619978,1754053844207,-460.0,0.00024657,10]
[376619979,1754053844216,-460.0,0.00024657,10]
[376619980,1754053844225,-460.0,0.00024657,10]
[376619981,1754053844235,-460.0,0.00024657,10]
[376619982,1754053844244,-460.0,0.00024657,10]
[376619983,1754053844254,-460.0,0.00024657,10]
[376619984,1754053844263,-460.0,0.00024657,10]
[376619985,1754053844273,-460.0,0.00024657,10]
[376619986,1754053844282,-460.0,0.00024657,10]
[376619987,1754053844291,-460.0,0.00024657,10]
[376619988,1754053844301,-460.0,0.00024657,10]
[376619989,1754053844310,-460.0,0.00024657,10]
[376619990,1754053844320,-460.0,0.00024657,10]
[376619991,1754053844329,-460.0,0.00024657,10]
[376619992,1754053844338,-460.0,0.00024657,10]
[376619993,1754053844347,-460.0,0.00024657,10]
[376619994,1754053844357,-460.0,0.00024657,10]
[376619995,1754053844366,-460.0,0.00024657,10]
[376619996,1754053844375,-550.66,0.00024657,10]
[376619997,1754053844384,-460.0,0.00024657,10]
[376619998,1754053844393,-460.0,0.00024657,10]
[376619999,1754053844402,-460.0,0.00024657,10]
[376620000,1754053844411,-460.0,0.00024657,10]
[376620001,1754053844420,-460.0,0.00024657,10]
[376620002,1754053844430,-460.0,0.00024657,10]
[376620003,1754053844439,-460.0,0.00024657,10]
[376620004,1754053844448,-460.0,0.00024657,10]
[376620005,1754053844458,-460.0,0.00024657,10]
[376620006,1754053844467,-460.0,0.00024657,10]
[376620007,1754053844476,-460.0,0.00024657,10]
[376620008,1754053844485,-460.0,0.00024657,10]
[376620009,1754053844495,-460.0,0.00024657,10]
[376620010,1754053844505,-460.0,0.00024657,10]
[376620011,1754053844515,-460.0,0.00024657,10]
[376620012,1754053844524,-460.0,0.00024657,10]
[376620013,1754053844533,-460.0,0.00024657,10]
[376620014,1754053844543,-553.21522738,0.00024657,10]
[376620015,1754053844552,-460.0,0.00024657,10]
[376620016,1754053844561,-460.0,0.00024657,10]
[376620017,1754053844571,-460.0,0.00024657,10]
[376620018,1754053844580,-151.0,0.00024657,7]
[376620019,1754053844589,-460.0,0.00024657,10]
[376620020,1754053844599,-460.0,0.00024657,10]
[376620021,1754053844608,-460.0,0.00024657,10]
[376620022,1754053844617,-151.0,0.00024657,7]
[376620023,1754053844627,-460.0,0.00024657,10]
[376620024,1754053844636,-151.0,0.00024657,7]
[376620025,1754053844646,-443.12376874,0.00024657,10]
[376620026,1754053844655,-279.268744,0.00024657,7]
[376620027,1754053844664,-460.0,0.00024657,10]
[376620028,1754053844673,-460.0,0.00024657,10]
[376620029,1754053844683,-460.0,0.00024657,10]
[376620030,1754053844692,-388.59109973,0.00024657,10]
[376620031,1754053844701,-460.0,0.00024657,10]
[376620032,1754053844710,-460.0,0.00024657,10]
[376620033,1754053844720,-460.0,0.00024657,10]
[376620034,1754053844729,-460.0,0.00024657,10]
[376620035,1754053844738,-151.0,0.00024657,7]
[376620036,1754053844747,-460.0,0.00024657,10]
[376620037,1754053844757,-460.0,0.00024657,10]
[376620038,1754053844766,-460.0,0.00024657,10]
[376620039,1754053844776,-460.0,0.00024657,10]
[376620040,1754053844923,-460.0,0.00024657,10]
[376620041,1754053844934,-460.0,0.00024657,10]
[376620042,1754053844944,-460.0,0.00024657,10]
[376620043,1754053844954,-460.0,0.00024657,10]
[376620044,1754053844964,-460.0,0.00024657,10]
[376620045,1754053844974,-460.0,0.00024657,10]
[376620046,1754053844983,-460.0,0.00024657,10]
[376620047,1754053844993,-460.0,0.00024657,10]
[376620048,1754053845003,-460.0,0.00024657,10]
[376620049,1754053845012,-460.0,0.00024657,10]
[376620050,1754053845021,-460.0,0.00024657,10]
[376620051,1754053845031,-460.0,0.00024657,10]
[376620052,1754053845040,-460.0,0.00024657,10]
[376620053,1754053845049,-460.0,0.00024657,10]
[376620054,1754053845059,-460.0,0.00024657,10]
[376620055,1754053845068,-460.0,0.00024657,10]
[376620056,1754053845080,-460.0,0.00024657,10]
[376620057,1754053845089,-460.0,0.00024657,10]
[376620058,1754053845099,-460.0,0.00024657,10]
[376620059,1754053845108,-460.0,0.00024657,10]
[376620060,1754053845119,-460.0,0.00024657,10]
[376620061,1754053845129,-322.3,0.00024657,10]
[376620062,1754053845138,-460.0,0.00024657,10]
[376620063,1754053845148,-460.0,0.00024657,10]
[376620064,1754053845158,-161.90861468,0.00024657,10]
[376620065,1754053845168,-460.0,0.00024657,10]
[376620066,1754053845177,-1000.0,0.00024657,10]
[376620067,1754053845187,-460.0,0.00024657,10]
[376620068,1754053845197,-460.0,0.00024657,10]
[376620069,1754053845206,-460.0,0.00024657,10]
[376620070,1754053845216,-460.0,0.00024657,10]
[376620071,1754053845226,-498.69,0.00024657,10]
[376620072,1754053845235,-460.0,0.00024657,10]
[376620073,1754053845245,-460.0,0.00024657,10]
[376620074,1754053845257,-498.69,0.00024657,10]
[376620075,1754053845265,-460.0,0.00024657,10]
[376620076,1754053845273,-460.0,0.00024657,10]
[376620077,1754053845281,-498.69,0.00024657,10]
[376620078,1754053845290,-460.0,0.00024657,10]
[376620079,1754053845300,-460.0,0.00024657,10]
[376620080,1754053845309,-498.69,0.00024657,10]
[376620081,1754053845319,-460.0,0.00024657,10]
[376620082,1754053845329,-460.0,0.00024657,10]
[376620083,1754053845338,-460.0,0.00024657,10]
[376620084,1754053845347,-460.0,0.00024657,10]
[376620085,1754053845356,-460.0,0.00024657,10]
[376620086,1754053845366,-460.0,0.00024657,10]
[376620087,1754053845375,-460.0,0.00024657,10]
[376620088,1754053845384,-460.0,0.00024657,10]
[376620090,1754053845393,-498.69,0.00024657,10]
[376620092,1754053845402,-460.0,0.00024657,10]
[376620093,1754053845411,-460.0,0.00024657,10]
[376620094,1754053845421,-498.69,0.00024657,10]
[376620095,1754053845430,-460.0,0.00024657,10]
[376620096,1754053845439,-460.0,0.00024657,10]
[376620097,1754053845448,-460.0,0.00024657,10]
[376620098,1754053845457,-460.0,0.00024657,10]
[376620100,1754053845466,-460.0,0.00024657,10]
[376620101,1754053845476,-460.0,0.00024657,10]
[376620102,1754053845485,-460.0,0.00024657,10]
[376620103,1754053845495,-498.69,0.00024657,10]
[376620104,1754053845506,-460.0,0.00024657,10]
[376620105,1754053845516,-460.0,0.00024657,10]
[376620106,1754053845525,-460.0,0.00024657,10]
[376620107,1754053845534,-460.0,0.00024657,10]
[376620108,1754053845544,-498.69,0.00024657,10]
[376620109,1754053845553,-460.0,0.00024657,10]
[376620110,1754053845563,-466.64707906,0.00024657,10]
[376620111,1754053845572,-498.69,0.00024657,10]
[376620112,1754053845581,-498.69,0.00024657,10]
[376620113,1754053845591,-498.69,0.00024657,10]
[376620114,1754053845600,-460.0,0.00024657,10]
[376620116,1754053845609,-498.69,0.00024657,10]
[376620117,1754053845618,-460.0,0.00024657,10]
[376620118,1754053845627,-460.0,0.00024657,10]
[376620119,1754053845637,-498.69,0.00024657,10]
[376620120,1754053845646,-498.69,0.00024657,10]
[376620121,1754053845655,-498.69,0.00024657,10]
[376620122,1754053845665,-498.69,0.00024657,10]
[376620124,1754053845674,-460.0,0.00024657,10]
[376620125,1754053845683,-460.0,0.00024657,10]
[376620126,1754053845693,-460.0,0.00024657,10]
[376620127,1754053845702,-498.69,0.00024657,10]
[376620128,1754053845711,-460.0,0.00024657,10]
[376620129,1754053845721,-498.69,0.00024657,10]
[376620130,1754053845730,-460.0,0.00024657,10]
[376620131,1754053845739,-460.0,0.00024657,10]
[376620132,1754053845752,-498.69,0.00024657,10]
[376620133,1754053845761,-554.6,0.00024657,10]
[376620134,1754053845771,-460.0,0.00024657,10]
[376620136,1754053845780,-460.0,0.00024657,10]
[376620137,1754053845789,-460.0,0.00024657,10]
[376620138,1754053845798,-462.3523654,0.00024657,10]
[376620139,1754053845807,-498.69,0.00024657,10]
[376620140,1754053845816,-460.0,0.00024657,10]
[376620141,1754053845825,-460.0,0.00024657,10]
[376620142,1754053845835,-498.69,0.00024657,10]
[376620144,1754053845844,-460.0,0.00024657,10]
[376620145,1754053845853,-460.0,0.00024657,10]
[376620146,1754053845863,-460.0,0.00024657,10]
[376620147,1754053845872,-460.0,0.00024657,10]
[376620148,1754053845882,-498.69,0.00024657,10]
[376620149,1754053845891,-460.0,0.00024657,10]
[376620151,1754053845900,-460.0,0.00024657,10]
[376620152,1754053845909,-498.69,0.00024657,10]
[376620153,1754053845918,-460.0,0.00024657,10]
[376620154,1754053845927,-498.83,0.00024657,10]
[376620155,1754053845937,-460.0,0.00024657,10]
[376620156,1754053845946,-460.0,0.00024657,10]
[376620157,1754053845955,-460.0,0.00024657,10]
[376620159,1754053845964,-460.0,0.00024657,10]
[376620160,1754053845972,-460.0,0.00024657,10]
[376620161,1754053845982,-460.0,0.00024657,10]
[376620162,1754053845991,-465.44398963,0.00024657,10]
[376620163,1754053846002,-460.0,0.00024657,10]
[376620164,1754053846011,-460.0,0.00024657,10]
[376620165,1754053846021,-460.0,0.00024657,10]
[376620166,1754053846030,-460.0,0.00024657,10]
[376620167,1754053846040,-539.53837735,0.00024657,10]
[376620168,1754053846049,-151.0,0.00024657,10]
[376620169,1754053846059,-151.0,0.00024657,10]
[376620170,1754053846068,-460.0,0.00024657,10]
[376620171,1754053846080,-11996.06,0.00024657,10]
[376620172,1754053846090,-151.0,0.00024657,10]
[376620173,1754053846099,-11996.06,0.00024657,10]
[376620174,1754053846109,-11996.06,0.00024657,10]
[376620175,1754053846119,-460.0,0.00024657,10]
[376620176,1754053846129,-11996.06,0.00024657,10]
[376620177,1754053846138,-151.0,0.00024657,10]
[376620178,1754053846148,-11996.06,0.00024657,10]
[376620179,1754053846158,-460.0,0.00024657,10]
[376620180,1754053846168,-460.0,0.00024657,10]
[376620182,1754053846178,-11996.06,0.00024657,10]
[376620184,1754053846187,-11996.06,0.00024657,10]
[376620186,1754053846197,-11996.06,0.00024657,10]
[376620188,1754053846206,-11996.06,0.00024657,10]
[376620190,1754053846216,-460.0,0.00024657,10]
[376620192,1754053846225,-11996.06,0.00024657,10]
[376620194,1754053846235,-5821.02038425,0.00024657,10]
[376620198,1754053846756,-312.16666667,0.00024656,10]
[376620199,1754053846765,-216.73435715,0.00024657,10]
[376620200,1754053846874,-2479.98467665,0.00024657,10]
[376620201,1754053846887,-3325.5,0.00024657,10]
[376620202,1754053846927,-152.82058195,0.00024657,10]
[376620203,1754053846936,-347.17941805,0.00024657,10]
[376620207,1754054003751,159.366768,0.00013699,2]
[376620209,1754054165976,441.03745129,0.00013699,2]
[376620214,1754054465468,330.77808847,0.00013699,2]
[376620228,1754054765264,248.08356635,0.00013699,2]
[376620257,1754054998210,159.545687,0.00013699,2]
[376620276,1754055023090,186.06267476,0.00013699,2]
[376620348,1754055032541,-312.2395233,0.000189,2]
[376620350,1754055032550,-160.0,0.0002,3]
[376620352,1754055032560,-159.545687,0.00020187,2]
[376620354,1754055032570,-203.41176079,0.00020652,2]
[376620356,1754055032581,-231.29082943,0.00021738,2]
[376620365,1754055032655,-68.70917057,0.00021738,2]
[376620367,1754055032665,-300.0,0.00021738,2]
[376620369,1754055032675,-3781.82220768,0.00021739,2]
[376620543,1754055038599,-17344.43,0.00021739,2]
[376620544,1754055038873,-96.25765572,0.00021739,2]
[376620545,1754055038882,-169.0,0.00022,2]
[376620546,1754055038891,-163.12,0.00022059,2]
[376620547,1754055038901,-200.0,0.00022173,15]
[376620548,1754055038910,-200.0,0.00022173,15]
[376620549,1754055038920,-200.0,0.00022173,15]
[376620550,1754055038929,-200.0,0.00022173,15]
[376620552,1754055038938,-200.0,0.00022173,15]
[376620554,1754055038948,-390.8602,0.00022324,2]
[376620556,1754055038958,-24900.0,0.00022686,2]
[376620557,1754055038967,-466.0,0.0002291,2]
[376620558,1754055038977,-10000.0,0.00022911,2]
[376620559,1754055038986,-250.0,0.0002357,2]
[376620560,1754055038996,-420.0,0.00023628,2]
[376620561,1754055039009,-177.566,0.00023636,4]
[376620562,1754055039018,-312.2395233,0.000239,2]
[376620563,1754055039028,-307.64931118,0.00023917,2]
[376620564,1754055039038,-1000.0,0.00024003,5]
[376620565,1754055039047,-215.03686253,0.00024075,2]
[376620566,1754055039056,-635.0,0.00024079,2]
[376620567,1754055039066,-12644.26590849,0.0002408,2]
[376620568,1754055039075,-598.05505505,0.00024273,2]
[376620569,1754055039084,-200.0,0.00024335,15]
[376620570,1754055039094,-200.0,0.00024335,15]
[376620571,1754055039103,-200.0,0.00024335,15]
[376620572,1754055039112,-200.0,0.00024335,15]
[376620573,1754055039122,-200.0,0.00024335,15]
[376620574,1754055039131,-200.0,0.00024335,15]
[376620575,1754055039141,-200.0,0.00024335,15]
[376620576,1754055039150,-547.2,0.00024347,3]
[376620577,1754055039160,-500.0,0.00024356,2]
[376620578,1754055039169,-217.26700182,0.00024356,2]
[376620579,1754055039178,-178.44695873,0.00024356,2]
[376620580,1754055039188,-500.0,0.00024356,2]
[376620581,1754055039197,-166.54964196,0.00024356,2]
[376620582,1754055039207,-439.99268634,0.00024356,2]
[376620583,1754055039216,-500.0,0.00024356,2]
[376620584,1754055039225,-466.08737203,0.00024356,2]
[376620585,1754055039235,-500.0,0.00024356,2]
[376620586,1754055039244,-605.55303979,0.00024356,2]
[376620587,1754055039255,-500.0,0.00024356,2]
[376620588,1754055039265,-500.0,0.00024356,2]
[376620589,1754055039274,-500.0,0.00024356,2]
[376620590,1754055039283,-500.0,0.00024356,2]
[376620591,1754055039292,-163.17093908,0.00024356,2]
[376620592,1754055039302,-500.0,0.00024356,2]
[376620593,1754055039311,-500.0,0.00024356,2]
[376620594,1754055039320,-500.0,0.00024356,2]
[376620595,1754055039328,-500.0,0.00024356,2]
[376620596,1754055039338,-370.08160993,0.00024356,2]
[376620597,1754055039347,-414.91192753,0.00024356,2]
[376620598,1754055039356,-294.2662048,0.00024356,2]
[376620599,1754055039366,-500.0,0.00024356,2]
[376620600,1754055039375,-605.25164421,0.00024356,2]
[376620601,1754055039385,-508.96855191,0.00024356,2]
[376620602,1754055039395,-500.0,0.00024356,2]
[376620603,1754055039405,-500.0,0.00024356,2]
[376620604,1754055039416,-500.0,0.00024356,2]
[376620605,1754055039427,-478.98364421,0.00024356,2]
[376620606,1754055039437,-500.0,0.00024356,2]
[376620607,1754055039447,-500.0,0.00024356,2]
[376620608,1754055039457,-500.0,0.00024356,2]
[376620609,1754055039466,-500.0,0.00024356,2]
[376620610,1754055039476,-500.0,0.00024356,2]
[376620611,1754055039485,-500.0,0.00024356,2]
[376620612,1754055039495,-500.0,0.00024356,2]
[376620613,1754055039508,-500.0,0.00024356,2]
[376620614,1754055039517,-500.0,0.00024356,2]
[376620615,1754055039526,-500.0,0.00024356,2]
[376620616,1754055039535,-500.0,0.00024356,2]
[376620617,1754055039545,-563.94075932,0.00024356,2]
[376620618,1754055039554,-500.0,0.00024356,2]
[376620619,1754055039563,-500.0,0.00024356,2]
[376620620,1754055039573,-500.0,0.00024356,2]
[376620621,1754055039583,-500.0,0.00024356,2]
[376620622,1754055039593,-500.0,0.00024356,2]
[376620623,1754055039603,-500.0,0.00024356,2]
[376620624,1754055039613,-328.99198129,0.00024356,2]
[376620625,1754055039622,-500.0,0.00024356,2]
[376620626,1754055039631,-498.94677764,0.00024356,2]
[376620627,1754055039641,-641.0005442,0.00024356,2]
[376620628,1754055039650,-166733.79349325,0.00024357,2]
[376620721,1754055040642,-4989.63658947,0.00024357,2]
[376620883,1754055046606,-211.96,0.00022,2]
[376620885,1754055046616,-211.96,0.00022646,2]
[376620888,1754055046626,-211.96,0.00023291,2]
[376620891,1754055046636,-211.96,0.00024,2]
[376620894,1754055046646,-970.0,0.00024079,2]
[376620898,1754055046655,-3962.16,0.00024357,2]
[376620901,1754055046667,-70000.0,0.00024357,2]
[376622980,1754056127996,159.756937,0.00013699,2]
[376623046,1754056232685,-340.85990852,0.000189,2]
[376623048,1754056232695,-159.756937,0.00020548,2]
[376623050,1754056232705,-589.52006788,0.00021642,2]
[376623055,1754056232745,-356.47993212,0.00021642,2]
[376623057,1754056232758,-300.0,0.00021642,2]
[376623059,1754056232767,-1759.67957999,0.00021643,2]
[376623490,1754056238666,-1485.80403998,0.00021643,2]
[376623492,1754056238680,-1130.77446522,0.00021643,2]
[376623494,1754056238692,-3967.58104433,0.00021643,2]
[376623499,1754056238726,-16556.16087048,0.00021643,2]
[376623501,1754056238736,-200.0,0.00022075,15]
[376623503,1754056238746,-200.0,0.00022075,15]
[376623505,1754056238760,-200.0,0.00022075,15]
[376623507,1754056238770,-200.0,0.00022075,15]
[376623509,1754056238780,-200.0,0.00022075,15]
[376623512,1754056238791,-177.566,0.00022276,2]
[376623514,1754056238800,-25562.3537183,0.00022411,2]
[376623515,1754056238809,-238.208497,0.00022511,2]
[376623517,1754056238819,-196.2827903,0.00022529,2]
[376623519,1754056238829,-285.64474044,0.00022541,2]
[376623521,1754056238839,-7124.4851925,0.00022907,2]
[376623523,1754056238848,-586.290299,0.00023036,2]
[376623525,1754056238858,-7673.00769198,0.00023286,2]
[376623528,1754056238870,-2326.99230802,0.00023286,2]
[376623530,1754056238879,-447.7579135,0.00023286,2]
[376623532,1754056238888,-420.0,0.00023526,2]
[376623534,1754056238899,-307.64931118,0.0002382,2]
[376623536,1754056238908,-340.85990852,0.000239,2]
[376623538,1754056238918,-294.0181366,0.00023949,2]
[376623540,1754056238929,-1000.0,0.00023972,5]
[376623542,1754056238939,-500.59689588,0.00023973,2]
[376623544,1754056238949,-542.55430628,0.00023973,2]
[376623546,1754056238958,-500.8401187,0.00023973,2]
[376623548,1754056238968,-500.0,0.00023973,2]
[376623550,1754056238978,-504.12015115,0.00023973,2]
[376623551,1754056238987,-581.92127721,0.00023973,2]
[376623553,1754056238996,-547.2,0.0002398,3]
[376623555,1754056239006,-42779.61206868,0.0002399,2]
[376623558,1754056239031,-27759.84905294,0.0002399,2]
[376623561,1754056239040,-184.5716988,0.00024079,2]
[376623563,1754056239050,-475.42391577,0.00024173,2]
[376623565,1754056239059,-500.0,0.00024173,2]
[376623567,1754056239068,-500.0,0.00024173,2]
[376623569,1754056239078,-500.0,0.00024173,2]
[376623572,1754056239087,-503.74849276,0.00024173,2]
[376623575,1754056239096,-500.0,0.00024173,2]
[376623578,1754056239105,-504.73741654,0.00024173,2]
[376623581,1754056239114,-500.0,0.00024173,2]
[376623584,1754056239123,-500.0,0.00024173,2]
[376623586,1754056239133,-598.05505505,0.00024173,2]
[376623589,1754056239142,-500.0,0.00024177,2]
[376623591,1754056239152,-500.0,0.00024177,2]
[376623593,1754056239162,-508.96855191,0.00024177,2]
[376623595,1754056239171,-500.0,0.00024177,2]
[376623597,1754056239183,-294.2662048,0.00024177,2]
[376623599,1754056239192,-500.0,0.00024177,2]
[376623601,1754056239201,-500.0,0.00024177,2]
[376623603,1754056239210,-500.0,0.00024177,2]
[376623605,1754056239219,-500.0,0.00024177,2]
[376623607,1754056239229,-500.0,0.00024177,2]
[376623609,1754056239238,-641.0005442,0.00024177,2]
[376623611,1754056239247,-500.0,0.00024177,2]
[376623613,1754056239256,-500.0,0.00024177,2]
[376623615,1754056239265,-500.0,0.00024177,2]
[376623617,1754056239274,-500.0,0.00024177,2]
[376623619,1754056239283,-243.00762596,0.00024177,2]
[376623621,1754056239292,-478.98364421,0.00024177,2]
[376623622,1754056239301,-645.80062281,0.00024177,2]
[376623625,1754056239311,-500.0,0.00024177,2]
[376623627,1754056239321,-500.0,0.00024177,2]
[376623629,1754056239330,-500.0,0.00024177,2]
[376623630,1754056239339,-500.0,0.00024177,2]
[376623632,1754056239348,-500.0,0.00024177,2]
[376623634,1754056239357,-500.0,0.00024177,2]
[376623636,1754056239366,-500.0,0.00024177,2]
[376623638,1754056239375,-500.0,0.00024177,2]
[376623640,1754056239384,-500.0,0.00024177,2]
[376623642,1754056239393,-500.0,0.00024177,2]
[376623644,1754056239403,-500.0,0.00024177,2]
[376623646,1754056239412,-500.0,0.00024177,2]
[376623648,1754056239422,-500.0,0.00024177,2]
[376623650,1754056239434,-500.0,0.00024177,2]
[376623652,1754056239444,-500.0,0.00024177,2]
[376623654,1754056239453,-500.0,0.00024177,2]
[376623656,1754056239463,-500.0,0.00024177,2]
[376623658,1754056239472,-500.0,0.00024177,2]
[376623659,1754056239482,-500.0,0.00024177,2]
[376623660,1754056239492,-500.0,0.00024177,2]
[376623661,1754056239501,-500.0,0.00024177,2]
[376623662,1754056239511,-500.0,0.00024177,2]
[376623663,1754056239520,-168.93558344,0.00024177,2]
[376623664,1754056239529,-500.0,0.00024177,2]
[376623665,1754056239539,-500.0,0.00024177,2]
[376623666,1754056239548,-605.25164421,0.00024177,2]
[376623667,1754056239558,-500.0,0.00024177,2]
[376623668,1754056239567,-500.0,0.00024177,2]
[376623669,1754056239576,-500.0,0.00024179,2]
[376623670,1754056239585,-12644.26590849,0.0002418,2]
[376623671,1754056239595,-215.03686253,0.0002418,2]
[376623672,1754056239605,-231.52694941,0.0002418,2]
[376623673,1754056239614,-200.0,0.00024228,15]
[376623674,1754056239623,-200.0,0.00024228,15]
[376623675,1754056239632,-200.0,0.00024228,15]
[376623676,1754056239642,-200.0,0.00024228,15]
[376623677,1754056239652,-200.0,0.00024228,15]
[376623678,1754056239661,-200.0,0.00024228,15]
[376623679,1754056239671,-200.0,0.00024228,15]
[376623680,1754056239684,-257.22552277,0.00024242,2]
[376623681,1754056239695,-151.0,0.00024242,2]
[376623682,1754056239704,-151.0,0.00024242,2]
[376623683,1754056239714,-151.0,0.00024242,2]
[376623684,1754056239724,-255.81420797,0.00024242,2]
[376623685,1754056239734,-443.40204454,0.00024256,2]
[376623686,1754056239744,-254.92422675,0.00024256,2]
[376623687,1754056239756,-183.70083837,0.00024257,2]
[376623688,1754056239766,-172688.58102436,0.00024257,2]
[376623729,1754056240787,-11789.0,0.00024257,2]